[Event "*** SCC Grand Prix: Titled Tuesday Blitz"]
[Site "Chess.com"]
[Date "2020.07.21"]
[Round "8"]
[White "Sacbutt"]
[Black "winniethepooh04"]
[Result "1-0"]
[WhiteElo "2248"]
[BlackElo "2089"]
[TimeControl "180+1"]
[EndTime "11:35:14 PDT"]
[Termination "Sacbutt won by resignation"]

1. d4 {[%clk 0:03:00.9]} 1... Nf6 {[%clk 0:02:59.1]} 2. c4 {[%clk 0:03:00.9]}
2... e6 {[%clk 0:02:57.3]} 3. Nf3 {[%clk 0:03:00.3]} 3... c5 {[%clk 0:02:56.8]}
4. d5 {[%clk 0:02:59.9]} 4... exd5 {[%clk 0:02:56.7]} 5. cxd5 {[%clk 0:03:00.8]}
5... d6 {[%clk 0:02:57.5]} 6. Nc3 {[%clk 0:03:01.4]} 6... g6 {[%clk 0:02:57.1]}
7. e4 {[%clk 0:03:01.2]} 7... Bg7 {[%clk 0:02:56.5]} 8. Be2 {[%clk 0:03:01.6]}
8... a6 {[%clk 0:02:55.4]} 9. a4 {[%clk 0:03:00.5]} 9... O-O {[%clk 0:02:55.5]}
10. O-O {[%clk 0:03:01]} 10... Bg4 {[%clk 0:02:55.3]} 11. Bg5 {[%clk 0:02:58.4]}
11... Nbd7 {[%clk 0:02:52.7]} 12. Qc2 {[%clk 0:02:57.8]} 12... Qc7 {[%clk
0:02:48.7]} 13. Rfe1 {[%clk 0:02:54.4]} 13... Bxf3 {[%clk 0:02:44]} 14. Bxf3
{[%clk 0:02:53.8]} 14... Ne5 {[%clk 0:02:44.5]} 15. Be2 {[%clk 0:02:53.3]} 15...
h6 {[%clk 0:02:38]} 16. Bh4 {[%clk 0:02:49.7]} 16... g5 {[%clk 0:02:32.8]} 17.
Bg3 {[%clk 0:02:49.4]} 17... Ng6 {[%clk 0:02:32.9]} 18. Bf1 {[%clk 0:02:46.5]}
18... Nh5 {[%clk 0:02:27.4]} 19. Ne2 {[%clk 0:02:31.6]} 19... Nhf4 {[%clk
0:02:21.7]} 20. Bxf4 {[%clk 0:02:27.8]} 20... gxf4 {[%clk 0:02:20.8]} 21. f3
{[%clk 0:02:12.5]} 21... c4 {[%clk 0:02:12.5]} 22. a5 {[%clk 0:02:01.7]} 22...
Rac8 {[%clk 0:02:11.1]} 23. Nc3 {[%clk 0:01:48.3]} 23... Ne5 {[%clk 0:02:08.3]}
24. Qd2 {[%clk 0:01:39.3]} 24... Qc5+ {[%clk 0:01:51.5]} 25. Kh1 {[%clk
0:01:38.1]} 25... Bf6 {[%clk 0:01:37.5]} 26. Qxf4 {[%clk 0:01:32.5]} 26... Bg5
{[%clk 0:01:12.9]} 27. Qg3 {[%clk 0:01:31.8]} 27... Ng6 {[%clk 0:01:13.3]} 28.
Red1 {[%clk 0:01:17.9]} 28... Kh7 {[%clk 0:01:00.2]} 29. Na4 {[%clk 0:01:17.4]}
29... Qc7 {[%clk 0:00:55.5]} 30. Nb6 {[%clk 0:01:16.7]} 30... Rcd8 {[%clk
0:00:51.3]} 31. Nxc4 {[%clk 0:01:15.6]} 31... Bh4 {[%clk 0:00:45.4]} 32. Qh3
{[%clk 0:01:13.6]} 32... Qe7 {[%clk 0:00:44.1]} 33. Qf5 {[%clk 0:01:10.3]} 33...
Rg8 {[%clk 0:00:39.7]} 34. g3 {[%clk 0:01:02.5]} 34... Bxg3 {[%clk 0:00:36.1]}
35. hxg3 {[%clk 0:01:00.8]} 35... Kh8 {[%clk 0:00:36.4]} 36. Bh3 {[%clk
0:00:47.6]} 36... Nh4 {[%clk 0:00:34.1]} 37. gxh4 {[%clk 0:00:41.2]} 37... Qxh4
{[%clk 0:00:34.2]} 38. Rg1 {[%clk 0:00:41.5]} 38... Rxg1+ {[%clk 0:00:21.1]} 39.
Rxg1 {[%clk 0:00:39.3]} 39... Rg8 {[%clk 0:00:20.9]} 40. Rxg8+ {[%clk
0:00:38.2]} 40... Kxg8 {[%clk 0:00:21.8]} 41. Qg4+ {[%clk 0:00:38.6]} 1-0

[Event "*** SCC Grand Prix: Titled Tuesday Blitz"]
[Site "Chess.com"]
[Date "2020.07.21"]
[Round "8"]
[White "czasnaszachy"]
[Black "MestreSoares"]
[Result "0-1"]
[WhiteElo "2230"]
[BlackElo "2094"]
[TimeControl "180+1"]
[EndTime "11:35:15 PDT"]
[Termination "MestreSoares won on time"]

1. d4 {[%clk 0:03:00.9]} 1... Nf6 {[%clk 0:02:59.5]} 2. c4 {[%clk 0:02:59]} 2...
c5 {[%clk 0:02:59.2]} 3. d5 {[%clk 0:02:58.9]} 3... e5 {[%clk 0:02:58.6]} 4. Nc3
{[%clk 0:02:56.4]} 4... d6 {[%clk 0:02:57.9]} 5. e4 {[%clk 0:02:55]} 5... Be7
{[%clk 0:02:57.5]} 6. f3 {[%clk 0:02:52.3]} 6... Nbd7 {[%clk 0:02:56.9]} 7. Bg5
{[%clk 0:02:43.5]} 7... Nf8 {[%clk 0:02:52.7]} 8. Qd2 {[%clk 0:02:41.3]} 8...
Ng6 {[%clk 0:02:52.4]} 9. Nge2 {[%clk 0:02:38.5]} 9... Nh5 {[%clk 0:02:45.1]}
10. Bxe7 {[%clk 0:02:28.6]} 10... Qxe7 {[%clk 0:02:44]} 11. g3 {[%clk
0:02:14.2]} 11... Qf6 {[%clk 0:02:43.2]} 12. Bg2 {[%clk 0:02:09.4]} 12... Bd7
{[%clk 0:02:34.4]} 13. Rf1 {[%clk 0:01:46.3]} 13... Qe7 {[%clk 0:02:30.3]} 14.
O-O-O {[%clk 0:01:40.8]} 14... a6 {[%clk 0:02:28.7]} 15. f4 {[%clk 0:01:39.1]}
15... exf4 {[%clk 0:02:27.7]} 16. gxf4 {[%clk 0:01:36.3]} 16... Nf6 {[%clk
0:02:22]} 17. Ng3 {[%clk 0:01:29.4]} 17... O-O {[%clk 0:02:11.1]} 18. Rde1
{[%clk 0:01:25.1]} 18... Rfe8 {[%clk 0:02:02.6]} 19. Nf5 {[%clk 0:01:23.1]}
19... Qf8 {[%clk 0:01:56.3]} 20. Nxd6 {[%clk 0:01:05.7]} 20... Qxd6 {[%clk
0:01:49.3]} 21. e5 {[%clk 0:01:05.7]} 21... Qb6 {[%clk 0:01:48.7]} 22. exf6
{[%clk 0:01:01.2]} 22... Qxf6 {[%clk 0:01:47.1]} 23. Ne4 {[%clk 0:00:55.3]}
23... Qh4 {[%clk 0:01:40.3]} 24. f5 {[%clk 0:00:40]} 24... Ne5 {[%clk
0:01:36.5]} 25. Nd6 {[%clk 0:00:19.4]} 25... Nxc4 {[%clk 0:01:20.8]} 26. Nxc4
{[%clk 0:00:08.1]} 26... Qxc4+ {[%clk 0:01:17.9]} 27. Kb1 {[%clk 0:00:09]} 27...
Rxe1+ {[%clk 0:01:13.6]} 28. Qxe1 {[%clk 0:00:07.7]} 28... Re8 {[%clk
0:01:08.9]} 29. Qg3 {[%clk 0:00:08]} 29... Qd4 {[%clk 0:01:00.1]} 30. f6 {[%clk
0:00:07.1]} 30... g6 {[%clk 0:00:59.3]} 31. Qg5 {[%clk 0:00:06.2]} 31... Bf5+
{[%clk 0:00:49.1]} 32. Ka1 {[%clk 0:00:04.1]} 32... Qd3 {[%clk 0:00:47]} 33. a3
{[%clk 0:00:02.1]} 33... Qe3 {[%clk 0:00:40.1]} 34. Qh6 {[%clk 0:00:01.9]} 34...
Qxh6 {[%clk 0:00:39.5]} 0-1

[Event "*** SCC Grand Prix: Titled Tuesday Blitz"]
[Site "Chess.com"]
[Date "2020.07.21"]
[Round "8"]
[White "Roza_Idrisova"]
[Black "JiiHart"]
[Result "1-0"]
[WhiteElo "2247"]
[BlackElo "2090"]
[TimeControl "180+1"]
[EndTime "11:35:17 PDT"]
[Termination "Roza_Idrisova won on time"]

1. d4 {[%clk 0:03:00.9]} 1... Nf6 {[%clk 0:02:58.7]} 2. Nf3 {[%clk 0:03:00.5]}
2... e6 {[%clk 0:02:58.5]} 3. Bg5 {[%clk 0:02:59.6]} 3... c5 {[%clk 0:02:54.4]}
4. c3 {[%clk 0:02:59.1]} 4... Qb6 {[%clk 0:02:50.8]} 5. Qb3 {[%clk 0:02:56.9]}
5... Ne4 {[%clk 0:02:44.7]} 6. e3 {[%clk 0:02:46.9]} 6... Nc6 {[%clk 0:02:35]}
7. Bf4 {[%clk 0:02:46.2]} 7... Be7 {[%clk 0:02:21.7]} 8. Bd3 {[%clk 0:02:45.4]}
8... d5 {[%clk 0:02:17.4]} 9. Nbd2 {[%clk 0:02:44.2]} 9... Nxd2 {[%clk
0:02:12.8]} 10. Nxd2 {[%clk 0:02:42.2]} 10... c4 {[%clk 0:02:11.7]} 11. Qxb6
{[%clk 0:02:42]} 11... axb6 {[%clk 0:02:10.3]} 12. Bc2 {[%clk 0:02:42.4]} 12...
O-O {[%clk 0:01:52]} 13. O-O {[%clk 0:02:36.1]} 13... f6 {[%clk 0:01:43.4]} 14.
a3 {[%clk 0:02:35.9]} 14... e5 {[%clk 0:01:43]} 15. Bg3 {[%clk 0:02:33]} 15...
e4 {[%clk 0:01:27.3]} 16. f3 {[%clk 0:02:28.3]} 16... f5 {[%clk 0:01:26.5]} 17.
fxe4 {[%clk 0:02:28.2]} 17... fxe4 {[%clk 0:01:26.8]} 18. Rxf8+ {[%clk
0:02:23.8]} 18... Bxf8 {[%clk 0:01:26.9]} 19. Rf1 {[%clk 0:02:23.8]} 19... Be6
{[%clk 0:01:09.6]} 20. Bd1 {[%clk 0:02:21.7]} 20... Be7 {[%clk 0:00:54.1]} 21.
h3 {[%clk 0:02:19.9]} 21... Rf8 {[%clk 0:00:50.1]} 22. Rxf8+ {[%clk 0:02:18.7]}
22... Kxf8 {[%clk 0:00:48.5]} 23. Ba4 {[%clk 0:02:15.9]} 23... Bd8 {[%clk
0:00:25.5]} 24. Bd6+ {[%clk 0:02:13.7]} 24... Ke8 {[%clk 0:00:24]} 25. Kf2
{[%clk 0:02:05.1]} 25... Kd7 {[%clk 0:00:23.3]} 26. Bg3 {[%clk 0:02:01.2]} 26...
Bc7 {[%clk 0:00:22]} 27. Bxc7 {[%clk 0:01:59.1]} 27... Kxc7 {[%clk 0:00:22]} 28.
g4 {[%clk 0:01:56]} 28... Na7 {[%clk 0:00:21.2]} 29. Kg3 {[%clk 0:01:54.3]}
29... b5 {[%clk 0:00:21.3]} 30. Bd1 {[%clk 0:01:53]} 30... Nc6 {[%clk
0:00:20.9]} 31. g5 {[%clk 0:01:50.8]} 31... Kd7 {[%clk 0:00:20.1]} 32. h4 {[%clk
0:01:50]} 32... Ke7 {[%clk 0:00:20.4]} 33. Kf4 {[%clk 0:01:49.4]} 33... g6
{[%clk 0:00:18.3]} 34. Nf1 {[%clk 0:01:46.8]} 34... Na5 {[%clk 0:00:16.9]} 35.
Ng3 {[%clk 0:01:41.7]} 35... Nc6 {[%clk 0:00:15.6]} 36. h5 {[%clk 0:01:39.8]}
36... Na5 {[%clk 0:00:15.2]} 37. hxg6 {[%clk 0:01:37.4]} 37... hxg6 {[%clk
0:00:15.3]} 38. Nh1 {[%clk 0:01:25.3]} 38... Nc6 {[%clk 0:00:15.2]} 39. Nf2
{[%clk 0:01:23.8]} 39... Kf7 {[%clk 0:00:15.2]} 40. Ng4 {[%clk 0:01:18.8]} 40...
Bxg4 {[%clk 0:00:14.1]} 41. Bxg4 {[%clk 0:01:14.6]} 41... Ke7 {[%clk 0:00:12.2]}
42. Bc8 {[%clk 0:01:13.5]} 42... b6 {[%clk 0:00:10.3]} 43. Bb7 {[%clk
0:01:11.6]} 43... Kd6 {[%clk 0:00:03.3]} 44. Bxc6 {[%clk 0:01:11.2]} 44... Kxc6
{[%clk 0:00:03.5]} 45. Ke5 {[%clk 0:01:11.3]} 45... b4 {[%clk 0:00:02.5]} 46.
axb4 {[%clk 0:01:10.9]} 46... b5 {[%clk 0:00:02.5]} 47. Ke6 {[%clk 0:01:10.8]}
1-0

[Event "*** SCC Grand Prix: Titled Tuesday Blitz"]
[Site "Chess.com"]
[Date "2020.07.21"]
[Round "8"]
[White "krzyzan94"]
[Black "EvgenyT"]
[Result "0-1"]
[WhiteElo "2648"]
[BlackElo "2910"]
[TimeControl "180+1"]
[EndTime "11:35:20 PDT"]
[Termination "EvgenyT won on time"]

1. e4 {[%clk 0:03:00.9]} 1... e5 {[%clk 0:02:59]} 2. Nf3 {[%clk 0:02:59.1]} 2...
Nc6 {[%clk 0:02:59.3]} 3. Bb5 {[%clk 0:02:58]} 3... a6 {[%clk 0:02:58.7]} 4. Ba4
{[%clk 0:02:57.9]} 4... Nf6 {[%clk 0:02:58.5]} 5. O-O {[%clk 0:02:56.4]} 5...
Be7 {[%clk 0:02:58.7]} 6. Re1 {[%clk 0:02:54.3]} 6... b5 {[%clk 0:02:57.5]} 7.
Bb3 {[%clk 0:02:54.6]} 7... O-O {[%clk 0:02:57.6]} 8. a4 {[%clk 0:02:53.9]} 8...
Bb7 {[%clk 0:02:55]} 9. c3 {[%clk 0:02:46.6]} 9... d5 {[%clk 0:02:39.5]} 10.
exd5 {[%clk 0:02:40]} 10... Nxd5 {[%clk 0:02:39.3]} 11. d4 {[%clk 0:02:26.8]}
11... exd4 {[%clk 0:02:34.4]} 12. Nxd4 {[%clk 0:02:25.7]} 12... Nxd4 {[%clk
0:02:30]} 13. Qxd4 {[%clk 0:02:23.6]} 13... c5 {[%clk 0:01:59.6]} 14. Qg4 {[%clk
0:02:18.6]} 14... f5 {[%clk 0:01:37.7]} 15. Qe2 {[%clk 0:01:24]} 15... c4 {[%clk
0:01:36.6]} 16. Bc2 {[%clk 0:01:22.7]} 16... Bc5 {[%clk 0:01:28.3]} 17. axb5
{[%clk 0:01:10.2]} 17... axb5 {[%clk 0:01:27.9]} 18. Rxa8 {[%clk 0:01:09.6]}
18... Bxa8 {[%clk 0:01:27.9]} 19. Qe6+ {[%clk 0:00:43.9]} 19... Kh8 {[%clk
0:01:25.8]} 20. Nd2 {[%clk 0:00:09.3]} 20... Nf4 {[%clk 0:01:11.5]} 21. Qe5
{[%clk 0:00:08.7]} 21... Nxg2 {[%clk 0:00:54.5]} 22. Rd1 {[%clk 0:00:07.9]}
22... Bd6 {[%clk 0:00:52.5]} 23. Qxb5 {[%clk 0:00:02.4]} 23... Bxh2+ {[%clk
0:00:43.5]} 24. Kxh2 {[%clk 0:00:02.1]} 24... Qh4+ {[%clk 0:00:43.4]} 25. Kg1
{[%clk 0:00:02.7]} 25... Nf4 {[%clk 0:00:43]} 26. Ne4 {[%clk 0:00:02.3]} 26...
Qg4+ {[%clk 0:00:26.6]} 27. Kf1 {[%clk 0:00:01.4]} 27... Qe2+ {[%clk 0:00:21.2]}
28. Kg1 {[%clk 0:00:01.6]} 28... Qxc2 {[%clk 0:00:20.8]} 0-1

[Event "*** SCC Grand Prix: Titled Tuesday Blitz"]
[Site "Chess.com"]
[Date "2020.07.21"]
[Round "8"]
[White "Mikhail_Golubev"]
[Black "Grandelicious"]
[Result "1/2-1/2"]
[WhiteElo "2611"]
[BlackElo "2779"]
[TimeControl "180+1"]
[EndTime "11:35:21 PDT"]
[Termination "Game drawn by repetition"]

1. e4 {[%clk 0:03:00.9]} 1... c5 {[%clk 0:02:59.3]} 2. Nf3 {[%clk 0:03:00.7]}
2... d6 {[%clk 0:03:00]} 3. d4 {[%clk 0:03:00.7]} 3... cxd4 {[%clk 0:03:00.9]}
4. Nxd4 {[%clk 0:03:00.9]} 4... Nf6 {[%clk 0:03:01.6]} 5. Nc3 {[%clk 0:03:01]}
5... a6 {[%clk 0:03:02.1]} 6. Bc4 {[%clk 0:03:00.8]} 6... Nbd7 {[%clk
0:02:56.3]} 7. O-O {[%clk 0:02:58.1]} 7... g6 {[%clk 0:02:55.4]} 8. a4 {[%clk
0:02:29.5]} 8... Bg7 {[%clk 0:02:54]} 9. Re1 {[%clk 0:02:29.4]} 9... O-O {[%clk
0:02:53.3]} 10. h3 {[%clk 0:02:29.4]} 10... Ne5 {[%clk 0:02:12.8]} 11. Bb3
{[%clk 0:02:24.6]} 11... Bd7 {[%clk 0:02:12.7]} 12. f4 {[%clk 0:02:19.5]} 12...
Nc6 {[%clk 0:02:12.6]} 13. Be3 {[%clk 0:01:47.5]} 13... Rc8 {[%clk 0:02:10.7]}
14. Qf3 {[%clk 0:01:45.5]} 14... Nxd4 {[%clk 0:01:39.8]} 15. Bxd4 {[%clk
0:01:44.8]} 15... Bc6 {[%clk 0:01:39.6]} 16. Rad1 {[%clk 0:01:44.6]} 16... Qa5
{[%clk 0:01:34.9]} 17. Nd5 {[%clk 0:01:33.9]} 17... Nxd5 {[%clk 0:01:12.6]} 18.
Bxg7 {[%clk 0:01:30.7]} 18... Kxg7 {[%clk 0:01:13.5]} 19. exd5 {[%clk
0:01:22.2]} 19... Bxa4 {[%clk 0:01:13.2]} 20. Rxe7 {[%clk 0:01:21.6]} 20... Bxb3
{[%clk 0:01:05.5]} 21. cxb3 {[%clk 0:01:21.5]} 21... Rfe8 {[%clk 0:00:52.8]} 22.
Rxb7 {[%clk 0:01:14.4]} 22... Rc2 {[%clk 0:00:48.1]} 23. f5 {[%clk 0:01:05.3]}
23... Ree2 {[%clk 0:00:26.3]} 24. Rxf7+ {[%clk 0:00:25.5]} 24... Kxf7 {[%clk
0:00:14.5]} 25. fxg6+ {[%clk 0:00:25.5]} 25... Kxg6 {[%clk 0:00:15.4]} 26. Qg4+
{[%clk 0:00:24]} 26... Kh6 {[%clk 0:00:15.8]} 27. Qh4+ {[%clk 0:00:23.5]} 27...
Kg7 {[%clk 0:00:15.9]} 28. Qg5+ {[%clk 0:00:21]} 28... Kh8 {[%clk 0:00:10.8]}
29. Qf6+ {[%clk 0:00:21.1]} 29... Kg8 {[%clk 0:00:11.4]} 30. Qg5+ {[%clk
0:00:20.6]} 30... Kh8 {[%clk 0:00:11.9]} 31. Qf6+ {[%clk 0:00:20.3]} 31... Kg8
{[%clk 0:00:12.4]} 32. Qg5+ {[%clk 0:00:20.5]} 32... Kh8 {[%clk 0:00:07.4]}
1/2-1/2

[Event "*** SCC Grand Prix: Titled Tuesday Blitz"]
[Site "Chess.com"]
[Date "2020.07.21"]
[Round "8"]
[White "MarceloPlaya"]
[Black "Gandrade2"]
[Result "0-1"]
[WhiteElo "2262"]
[BlackElo "2090"]
[TimeControl "180+1"]
[EndTime "11:35:21 PDT"]
[Termination "Gandrade2 won on time"]

1. e4 {[%clk 0:02:42.2]} 1... c5 {[%clk 0:02:58.4]} 2. Nf3 {[%clk 0:02:40.3]}
2... g6 {[%clk 0:02:58.5]} 3. d4 {[%clk 0:02:37.7]} 3... cxd4 {[%clk 0:02:59.4]}
4. Nxd4 {[%clk 0:02:36.9]} 4... Bg7 {[%clk 0:02:59.1]} 5. Nc3 {[%clk 0:02:36.7]}
5... Nc6 {[%clk 0:02:59.4]} 6. Be3 {[%clk 0:02:36.4]} 6... Nf6 {[%clk 0:02:59]}
7. Bc4 {[%clk 0:02:33.8]} 7... Qa5 {[%clk 0:02:58.2]} 8. Nxc6 {[%clk 0:02:22.2]}
8... bxc6 {[%clk 0:02:45.8]} 9. O-O {[%clk 0:02:09.1]} 9... O-O {[%clk
0:02:23.9]} 10. f4 {[%clk 0:01:30.5]} 10... Qb4 {[%clk 0:02:11]} 11. Qd3 {[%clk
0:01:22.4]} 11... d6 {[%clk 0:01:48.6]} 12. e5 {[%clk 0:01:11]} 12... Ng4 {[%clk
0:01:25.3]} 13. exd6 {[%clk 0:00:51.7]} 13... Nxe3 {[%clk 0:01:17.6]} 14. Qxe3
{[%clk 0:00:29.2]} 14... Qxc4 {[%clk 0:01:04.4]} 15. Qxe7 {[%clk 0:00:28.9]}
15... Be6 {[%clk 0:00:53.3]} 16. Rae1 {[%clk 0:00:21]} 16... Rfe8 {[%clk
0:00:47.1]} 17. Qc7 {[%clk 0:00:19.9]} 17... Bxc3 {[%clk 0:00:43.1]} 18. bxc3
{[%clk 0:00:19.1]} 18... Qc5+ {[%clk 0:00:37.4]} 19. Kh1 {[%clk 0:00:18.3]}
19... Rec8 {[%clk 0:00:32.2]} 20. Qe7 {[%clk 0:00:16]} 20... Rd8 {[%clk
0:00:26.4]} 21. Rxe6 {[%clk 0:00:14.9]} 21... fxe6 {[%clk 0:00:25.7]} 22. Qxe6+
{[%clk 0:00:14.5]} 22... Kh8 {[%clk 0:00:25.1]} 23. Qf6+ {[%clk 0:00:13.7]}
23... Kg8 {[%clk 0:00:25.7]} 24. Qe6+ {[%clk 0:00:11.2]} 24... Kg7 {[%clk
0:00:24.6]} 25. Qe7+ {[%clk 0:00:10.4]} 25... Kh6 {[%clk 0:00:22.2]} 26. Qh4+
{[%clk 0:00:06.9]} 26... Qh5 {[%clk 0:00:21.1]} 27. Qe7 {[%clk 0:00:05.4]} 27...
Re8 {[%clk 0:00:20.1]} 28. Qf6 {[%clk 0:00:03.2]} 28... Qe2 {[%clk 0:00:19.6]}
0-1

[Event "*** SCC Grand Prix: Titled Tuesday Blitz"]
[Site "Chess.com"]
[Date "2020.07.21"]
[Round "8"]
[White "fabianvivasz"]
[Black "mariangie523"]
[Result "0-1"]
[WhiteElo "2282"]
[BlackElo "2047"]
[TimeControl "180+1"]
[EndTime "11:35:22 PDT"]
[Termination "mariangie523 won on time"]

1. e4 {[%clk 0:03:00.9]} 1... c5 {[%clk 0:02:58.4]} 2. Nf3 {[%clk 0:03:00.8]}
2... d6 {[%clk 0:02:57.3]} 3. d4 {[%clk 0:03:00.5]} 3... cxd4 {[%clk 0:02:57.3]}
4. Nxd4 {[%clk 0:03:01.4]} 4... Nf6 {[%clk 0:02:57.4]} 5. Nc3 {[%clk 0:03:01.9]}
5... g6 {[%clk 0:02:56.9]} 6. Be3 {[%clk 0:02:59.3]} 6... Bg7 {[%clk 0:02:57]}
7. f3 {[%clk 0:02:59.7]} 7... O-O {[%clk 0:02:56.5]} 8. Qd2 {[%clk 0:03:00.3]}
8... Nc6 {[%clk 0:02:56.9]} 9. O-O-O {[%clk 0:03:00.4]} 9... d5 {[%clk
0:02:57.3]} 10. Nxc6 {[%clk 0:02:59.1]} 10... bxc6 {[%clk 0:02:56.9]} 11. Bc4
{[%clk 0:02:59.8]} 11... Bb7 {[%clk 0:02:29.1]} 12. exd5 {[%clk 0:02:57.9]}
12... cxd5 {[%clk 0:02:20.3]} 13. Nxd5 {[%clk 0:02:58]} 13... Nxd5 {[%clk
0:02:15.8]} 14. Bxd5 {[%clk 0:02:58.9]} 14... Qc7 {[%clk 0:02:09.3]} 15. Bxb7
{[%clk 0:02:17.6]} 15... Rfb8 {[%clk 0:01:55.7]} 16. Qd7 {[%clk 0:01:52.5]}
16... Bxb2+ {[%clk 0:01:37.9]} 17. Kb1 {[%clk 0:01:48.5]} 17... Qxb7 {[%clk
0:01:34.1]} 18. Qxb7 {[%clk 0:01:34.7]} 18... Rxb7 {[%clk 0:01:29.1]} 19. Rd3
{[%clk 0:01:22.8]} 19... Bc3+ {[%clk 0:01:24.4]} 20. Kc1 {[%clk 0:01:18]} 20...
Rab8 {[%clk 0:01:24.6]} 21. Kd1 {[%clk 0:00:34.7]} 21... Rb1+ {[%clk 0:01:22.2]}
22. Bc1 {[%clk 0:00:34.9]} 22... Be5 {[%clk 0:00:56.1]} 23. g3 {[%clk
0:00:23.8]} 23... Rc8 {[%clk 0:00:48.2]} 24. Re1 {[%clk 0:00:15.2]} 24... Bc3
{[%clk 0:00:42.3]} 25. Rf1 {[%clk 0:00:05.1]} 25... Ra1 {[%clk 0:00:41.8]} 26.
a3 {[%clk 0:00:04]} 26... e5 {[%clk 0:00:30.9]} 27. Ke2 {[%clk 0:00:03.3]} 27...
Ra2 {[%clk 0:00:25.4]} 28. Kd1 {[%clk 0:00:01.4]} 28... Bb2 {[%clk 0:00:16.6]}
0-1

[Event "*** SCC Grand Prix: Titled Tuesday Blitz"]
[Site "Chess.com"]
[Date "2020.07.21"]
[Round "8"]
[White "Orest_Vovk"]
[Black "Vesper2018"]
[Result "0-1"]
[WhiteElo "2392"]
[BlackElo "2586"]
[TimeControl "180+1"]
[EndTime "11:35:25 PDT"]
[Termination "Vesper2018 won on time"]

1. h4 {[%clk 0:03:00.9]} 1... d5 {[%clk 0:02:58.6]} 2. h5 {[%clk 0:03:00.9]}
2... e5 {[%clk 0:02:54.8]} 3. h6 {[%clk 0:03:00.7]} 3... Nxh6 {[%clk 0:02:50.5]}
4. d4 {[%clk 0:03:01]} 4... Nc6 {[%clk 0:02:46]} 5. Bxh6 {[%clk 0:02:58.4]} 5...
gxh6 {[%clk 0:02:45.7]} 6. dxe5 {[%clk 0:02:58.8]} 6... Nxe5 {[%clk 0:02:44]} 7.
Nf3 {[%clk 0:02:54.8]} 7... Bg7 {[%clk 0:02:41.9]} 8. c3 {[%clk 0:02:49.4]} 8...
c6 {[%clk 0:02:38.4]} 9. Nxe5 {[%clk 0:02:45.9]} 9... Bxe5 {[%clk 0:02:37.9]}
10. Rxh6 {[%clk 0:02:44.5]} 10... Bg7 {[%clk 0:02:33.9]} 11. Rh1 {[%clk
0:02:37.7]} 11... Bf5 {[%clk 0:02:33.7]} 12. e3 {[%clk 0:02:35.1]} 12... Qd7
{[%clk 0:02:29.8]} 13. Bd3 {[%clk 0:02:32.4]} 13... O-O-O {[%clk 0:02:28.6]} 14.
Bxf5 {[%clk 0:02:23.8]} 14... Qxf5 {[%clk 0:02:28.4]} 15. Qh5 {[%clk 0:02:00]}
15... Qg6 {[%clk 0:02:11.7]} 16. g3 {[%clk 0:01:41]} 16... c5 {[%clk 0:02:06.9]}
17. Nd2 {[%clk 0:01:39.5]} 17... Kb8 {[%clk 0:01:58.2]} 18. Qxg6 {[%clk
0:01:37.5]} 18... hxg6 {[%clk 0:01:57.6]} 19. Rxh8 {[%clk 0:01:37.1]} 19... Bxh8
{[%clk 0:01:57]} 20. O-O-O {[%clk 0:01:25.6]} 20... Kc7 {[%clk 0:01:51.9]} 21.
Rh1 {[%clk 0:01:21.1]} 21... Kd7 {[%clk 0:01:51]} 22. Rh7 {[%clk 0:01:19.6]}
22... Ke7 {[%clk 0:01:49.8]} 23. Nf3 {[%clk 0:01:18.5]} 23... Bf6 {[%clk
0:01:47.7]} 24. Kc2 {[%clk 0:01:13]} 24... b5 {[%clk 0:01:43.2]} 25. Kd3 {[%clk
0:01:05]} 25... a5 {[%clk 0:01:37.8]} 26. g4 {[%clk 0:00:35.5]} 26... b4 {[%clk
0:01:35.2]} 27. c4 {[%clk 0:00:26]} 27... Bxb2 {[%clk 0:01:15.1]} 28. Ng5 {[%clk
0:00:18.8]} 28... Kf6 {[%clk 0:01:13.8]} 29. f4 {[%clk 0:00:18.1]} 29... Rd7
{[%clk 0:01:12.5]} 30. cxd5 {[%clk 0:00:12.5]} 30... a4 {[%clk 0:00:53]} 31. Kc4
{[%clk 0:00:09.2]} 31... b3 {[%clk 0:00:49.6]} 32. axb3 {[%clk 0:00:07.7]} 32...
a3 {[%clk 0:00:50.1]} 33. Ne4+ {[%clk 0:00:07.6]} 33... Ke7 {[%clk 0:00:50]} 34.
Nxc5 {[%clk 0:00:06.9]} 34... a2 {[%clk 0:00:44.8]} 35. Rh1 {[%clk 0:00:06.7]}
35... Rc7 {[%clk 0:00:40.5]} 36. b4 {[%clk 0:00:04.7]} 36... a1=Q {[%clk
0:00:38.3]} 37. Rxa1 {[%clk 0:00:04.5]} 37... Bxa1 {[%clk 0:00:39]} 38. e4
{[%clk 0:00:03.1]} 38... f6 {[%clk 0:00:38.6]} 0-1